fUST/lending_fUST_20250725
["ID","MTS","AMOUNT","RATE_DAILY","PERIOD"]
[374661516,1753403474821,-460.0,0.00019263,2]
[374661517,1753403474835,-460.0,0.00019334,2]
[374661518,1753403474850,-460.0,0.00019334,2]
[374661519,1753403474865,-433.29035774,0.00019608,2]
[374661520,1753403474879,-725.55075977,0.00020463,2]
[374661521,1753403474891,-460.0,0.00020463,2]
[374661522,1753403474904,-1019.32,0.00020463,2]
[374661523,1753403474917,-460.0,0.00020463,2]
[374661524,1753403474929,-460.0,0.00020463,2]
[374661525,1753403474943,-460.0,0.00020463,2]
[374661526,1753403474956,-460.0,0.00020463,2]
[374661527,1753403474969,-151.0,0.00020463,2]
[374661528,1753403474981,-460.0,0.00020463,2]
[374661529,1753403474993,-181.65198,0.00020463,2]
[374661530,1753403475006,-181.65198,0.00020463,2]
[374661531,1753403475020,-518.36,0.00020463,2]
[374661532,1753403475032,-2500.0,0.00020464,2]
[374661533,1753403475046,-2500.0,0.00020464,2]
[374661534,1753403475059,-151.0,0.00020465,2]
[374661535,1753403475071,-168.076005,0.00020465,2]
[374661536,1753403475083,-1500.0,0.00020468,2]
[374661537,1753403475095,-1500.0,0.00020468,2]
[374661538,1753403475108,-1500.0,0.00020468,2]
[374661539,1753403475120,-1500.0,0.00020468,2]
[374661540,1753403475133,-1500.0,0.00020468,2]
[374661541,1753403475144,-576.25971282,0.00020468,2]
[374661542,1753403475157,-1500.0,0.00020468,2]
[374661543,1753403475169,-3000.0,0.00020496,2]
[374661544,1753403475180,-6000.0,0.00020528,2]
[374661545,1753403475192,-508.0,0.00020539,2]
[374661546,1753403475205,-4836.40217312,0.00020555,3]
[374661547,1753403475217,-160.0,0.0002056,3]
[374661548,1753403475229,-185.165355,0.0002056,2]
[374661549,1753403475242,-151.0,0.00020567,2]
[374661550,1753403475254,-151.0,0.00020567,2]
[374661551,1753403475265,-151.0,0.00020567,2]
[374661552,1753403475278,-169.619213,0.00020567,2]
[374661553,1753403475291,-185.255526,0.00020567,2]
[374661554,1753403475301,-185.255526,0.00020567,2]
[374661555,1753403475311,-174.135301,0.00020567,2]
[374661556,1753403475321,-174.135301,0.00020567,2]
[374661557,1753403475331,-476.79463412,0.000206,3]
[374661558,1753403475341,-160.0,0.000206,3]
[374661559,1753403475351,-460.0,0.00020621,2]
[374661560,1753403475361,-460.0,0.00020621,2]
[374661561,1753403475371,-3591.58,0.00020621,2]
[374661562,1753403475380,-541.22,0.00020621,2]
[374661563,1753403475390,-1056.91,0.00020621,2]
[374661564,1753403475400,-1275.35,0.00020621,2]
[374661565,1753403475409,-3097.91,0.00020621,2]
[374661566,1753403475420,-4502.54,0.00020621,2]
[374661567,1753403475431,-3669.95,0.00020621,2]
[374661568,1753403475442,-460.0,0.00020621,2]
[374661569,1753403475453,-460.0,0.00020624,2]
[374661570,1753403475463,-460.0,0.0002063,2]
[374661571,1753403475473,-460.0,0.00020633,2]
[374661572,1753403475484,-151.0,0.00020633,2]
[374661573,1753403475493,-460.0,0.00020633,2]
[374661574,1753403475504,-151.0,0.00020633,2]
[374661575,1753403475514,-497.93,0.00020633,2]
[374661576,1753403475526,-487.29,0.00020633,2]
[374661577,1753403475536,-162.339688,0.00020633,2]
[374661578,1753403475546,-162.339688,0.00020633,2]
[374661579,1753403475556,-460.0,0.00020633,2]
[374661580,1753403475566,-713.91,0.00020633,2]
[374661581,1753403475576,-1821.3,0.00020633,2]
[374661582,1753403475585,-613.0,0.00020633,2]
[374661583,1753403475595,-669.88,0.00020633,2]
[374661584,1753403475605,-300.79753909,0.00020633,2]
[374661585,1753403475616,-914.47,0.00020633,2]
[374661586,1753403475625,-781.02,0.00020633,2]
[374661587,1753403475636,-460.0,0.00020633,2]
[374661588,1753403475645,-460.0,0.00020633,2]
[374661589,1753403475656,-460.0,0.00020633,2]
[374661590,1753403475665,-721.46,0.00020633,2]
[374661591,1753403475677,-460.0,0.00020633,2]
[374661592,1753403475688,-505.29,0.00020633,2]
[374661593,1753403475698,-1720.45,0.00020633,2]
[374661594,1753403475708,-460.0,0.00020633,2]
[374661595,1753403475719,-667.86,0.00020633,2]
[374661596,1753403475730,-460.0,0.00020633,2]
[374661597,1753403475741,-460.0,0.00020633,2]
[374661598,1753403475751,-815.21,0.00020633,2]
[374661599,1753403475762,-460.0,0.00020633,2]
[374661600,1753403476042,-460.0,0.00020633,2]
[374661601,1753403476062,-658.4,0.00020633,2]
[374661602,1753403476075,-467.23,0.00020633,2]
[374661603,1753403476086,-848.09,0.00020633,2]
[374661604,1753403476098,-151.0,0.00020658,2]
[374661605,1753403476113,-151.0,0.00020658,2]
[374661606,1753403476123,-651.0,0.00020658,2]
[374661607,1753403476133,-151.0,0.0002066,2]
[374661608,1753403476143,-188.449784,0.000207,2]
[374661609,1753403476152,-914.31,0.000207,2]
[374661610,1753403476163,-460.0,0.000207,2]
[374661611,1753403476172,-2681.77,0.000207,2]
[374661612,1753403476182,-829.03,0.000207,2]
[374661613,1753403476192,-460.0,0.00020702,2]
[374661614,1753403476202,-700.51,0.00020702,2]
[374661615,1753403476211,-460.0,0.00020703,2]
[374661616,1753403476221,-460.0,0.00020703,2]
[374661617,1753403476231,-8001.42,0.00020703,2]
[374661618,1753403476240,-460.0,0.00020703,2]
[374661619,1753403476250,-3960.81,0.00020703,2]
[374661620,1753403476260,-460.0,0.00020703,2]
[374661621,1753403476271,-833.49,0.00020703,2]
[374661622,1753403476282,-870.13,0.00020703,2]
[374661623,1753403476296,-1140.91,0.00020703,2]
[374661624,1753403476306,-3160.07,0.00020703,2]
[374661625,1753403476316,-3852.66,0.00020703,2]
[374661626,1753403476326,-1023.4,0.00020703,2]
[374661627,1753403476336,-460.0,0.00020703,2]
[374661628,1753403476346,-2667.14,0.00020703,2]
[374661629,1753403476355,-920.37,0.00020703,2]
[374661630,1753403476365,-473.13138969,0.00020704,2]
[374661631,1753403476374,-767.54,0.00020704,2]
[374661632,1753403476384,-701.77,0.00020704,2]
[374661633,1753403476393,-569.95,0.00020704,2]
[374661634,1753403476403,-460.0,0.00020704,2]
[374661635,1753403476412,-963.68,0.00020704,2]
[374661636,1753403476421,-614.53,0.00020704,2]
[374661637,1753403476431,-1011.84,0.00020704,2]
[374661638,1753403476440,-1436.23,0.00020704,2]
[374661639,1753403476449,-158.28402901,0.00020704,2]
[374661640,1753403476459,-460.0,0.00020704,2]
[374661641,1753403476469,-724.3,0.00020704,2]
[374661642,1753403476478,-460.0,0.00020704,2]
[374661643,1753403476488,-460.0,0.00020704,2]
[374661644,1753403476498,-1192.38,0.00020704,2]
[374661645,1753403476508,-573.91,0.00020704,2]
[374661646,1753403476519,-1046.61,0.00020704,2]
[374661647,1753403476529,-460.0,0.00020704,2]
[374661648,1753403476539,-1132.12,0.00020704,2]
[374661649,1753403476548,-1506.06,0.00020704,2]
[374661650,1753403476557,-177.41849238,0.00020704,2]
[374661651,1753403476567,-460.0,0.00020704,2]
[374661652,1753403476577,-460.0,0.00020704,2]
[374661653,1753403476587,-460.0,0.00020704,2]
[374661654,1753403476597,-428.34470411,0.00020704,2]
[374661655,1753403476607,-508.0,0.00020707,2]
[374661656,1753403476616,-460.0,0.00020707,2]
[374661657,1753403476626,-757.41,0.00020707,2]
[374661658,1753403476635,-460.0,0.00020707,2]
[374661659,1753403476645,-460.0,0.00020707,2]
[374661660,1753403476655,-777.25,0.00020707,2]
[374661661,1753403476664,-1547.17,0.00020707,2]
[374661662,1753403476673,-1507.8,0.00020707,2]
[374661663,1753403476682,-1157.67,0.00020707,2]
[374661664,1753403476692,-491.14,0.00020707,2]
[374661665,1753403476701,-481.62,0.00020707,2]
[374661666,1753403476711,-1071.58,0.00020707,2]
[374661667,1753403476721,-877.32,0.00020707,2]
[374661668,1753403476730,-572.88,0.00020707,2]
[374661669,1753403476740,-1264.56,0.00020707,2]
[374661670,1753403476749,-460.0,0.00020707,2]
[374661671,1753403476759,-156.906836,0.00020708,2]
[374661672,1753403476770,-156.906836,0.00020708,2]
[374661673,1753403476780,-402.712883,0.00020708,2]
[374661674,1753403476793,-402.712883,0.00020708,2]
[374661675,1753403476803,-610.19,0.00020708,2]
[374661676,1753403476813,-5845.77,0.00020708,2]
[374661677,1753403476822,-2552.59,0.00020708,2]
[374661678,1753403476832,-2511.43,0.00020708,2]
[374661679,1753403476842,-460.0,0.00020709,2]
[374661680,1753403476852,-151.0,0.00020709,2]
[374661681,1753403476862,-460.0,0.00020709,2]
[374661682,1753403476871,-460.0,0.00020709,2]
[374661683,1753403476880,-597.39,0.00020709,2]
[374661684,1753403476890,-944.16,0.00020709,2]
[374661685,1753403476899,-460.0,0.00020709,2]
[374661686,1753403476909,-1040.64,0.00020709,2]
[374661687,1753403476918,-606.81,0.00020709,2]
[374661688,1753403476928,-863.85,0.00020709,2]
[374661689,1753403476937,-460.0,0.00020709,2]
[374661690,1753403476947,-748.89,0.00020709,2]
[374661691,1753403476957,-460.0,0.00020709,2]
[374661692,1753403476967,-460.0,0.00020709,2]
[374661693,1753403476976,-814.22,0.00020709,2]
[374661694,1753403476986,-1314.45,0.00020709,2]
[374661695,1753403476996,-1394.83,0.00020709,2]
[374661696,1753403477006,-460.0,0.00020709,2]
[374661697,1753403477016,-629.64,0.00020709,2]
[374661698,1753403477029,-1301.85,0.00020709,2]
[374661699,1753403477039,-151.0,0.00020709,2]
[374661700,1753403477049,-762.27,0.00020709,2]
[374661701,1753403477059,-460.0,0.00020709,2]
[374661702,1753403477069,-654.44,0.00020709,2]
[374661703,1753403477079,-421.044757,0.00020709,2]
[374661704,1753403477089,-421.044757,0.00020709,2]
[374661705,1753403477099,-611.33,0.00020709,2]
[374661706,1753403477108,-583.62,0.00020709,2]
[374661707,1753403477118,-216.420812,0.00020709,2]
[374661708,1753403477128,-696.94,0.00020709,2]
[374661709,1753403477137,-216.420812,0.00020709,2]
[374661710,1753403477147,-938.95,0.00020709,2]
[374661711,1753403477156,-584.1,0.00020709,2]
[374661712,1753403477166,-1418.18,0.00020709,2]
[374661713,1753403477175,-1188.07,0.00020709,2]
[374661714,1753403477184,-756.86,0.00020709,2]
[374661715,1753403477194,-2548.02,0.00020709,2]
[374661716,1753403477204,-568.95,0.00020733,2]
[374661717,1753403477213,-466.958569,0.00020733,2]
[374661718,1753403477223,-460.0,0.00020733,2]
[374661719,1753403477232,-460.0,0.00020733,2]
[374661720,1753403477241,-460.0,0.00020733,2]
[374661721,1753403477251,-460.0,0.00020733,2]
[374661722,1753403477261,-460.0,0.00020733,2]
[374661723,1753403477273,-460.0,0.00020733,2]
[374661724,1753403477283,-677.81,0.00020733,2]
[374661725,1753403477296,-209.63770264,0.00020733,2]
[374661726,1753403477306,-151.0,0.00020735,2]
[374661727,1753403477315,-460.0,0.00020735,2]
[374661728,1753403477325,-151.0,0.00020735,2]
[374661729,1753403477335,-168.0,0.00020735,2]
[374661730,1753403477344,-460.0,0.00020737,2]
[374661731,1753403477354,-151.0,0.00020737,2]
[374661732,1753403477363,-261.955526,0.00020737,2]
[374661733,1753403477374,-460.0,0.00020737,2]
[374661734,1753403477384,-151.0,0.00020737,2]
[374661735,1753403477393,-460.0,0.00020737,2]
[374661736,1753403477404,-879.6,0.00020737,2]
[374661737,1753403477413,-460.0,0.00020737,2]
[374661738,1753403477423,-1019.32,0.00020737,2]
[374661739,1753403477432,-460.0,0.00020737,2]
[374661740,1753403477442,-460.0,0.00020737,2]
[374661741,1753403477454,-460.0,0.00020737,2]
[374661742,1753403477464,-460.0,0.00020737,2]
[374661743,1753403477475,-460.0,0.00020737,2]
[374661744,1753403477486,-518.36,0.00020737,2]
[374661745,1753403477497,-4836.40217312,0.00020762,3]
[374661746,1753403477507,-2500.0,0.00020764,2]
[374661747,1753403477517,-1000.0,0.00020764,2]
[374661748,1753403477529,-1515.86765013,0.00020764,2]
[374661749,1753403477539,-508.0,0.00020864,2]
[374661750,1753403477549,-150.0,0.00020878,2]
[374661751,1753403477558,-245.948,0.00020878,2]
[374661752,1753403477568,-460.0,0.00020895,2]
[374661753,1753403477578,-460.0,0.00020895,2]
[374661754,1753403477587,-3591.58,0.00020895,2]
[374661755,1753403477597,-541.22,0.00020895,2]
[374661756,1753403477607,-1056.91,0.00020895,2]
[374661757,1753403477617,-1275.35,0.00020895,2]
[374661758,1753403477627,-2792.78885075,0.00020895,2]
[374661759,1753403478095,-460.0,0.00018237,2]
[374661760,1753403478105,-460.0,0.00018237,2]
[374661761,1753403478115,-460.0,0.00018241,2]
[374661762,1753403478124,-460.0,0.00018242,2]
[374661763,1753403478134,-125.68508685,0.00018273,2]
[374661764,1753403480919,460.0,0.00017999,2]
[374661765,1753403481267,460.0,0.00017999,2]
[374661766,1753403481377,460.0,0.00017999,2]
[374661767,1753403481632,460.0,0.00017999,2]
[374661768,1753403481814,460.0,0.00017999,2]
[374661769,1753403481910,177.48005639,0.00017999,2]
[374661770,1753403481976,460.0,0.00017999,2]
[374661771,1753403482003,460.0,0.00017999,2]
[374661772,1753403482253,460.0,0.00017999,2]
[374661773,1753403482607,460.0,0.00017999,2]
[374661774,1753403482680,460.0,0.00017999,2]
[374661775,1753403483300,460.0,0.00017999,2]
[374661776,1753403483364,300.0,0.00017998,2]
[374661777,1753403483408,-156.71974513,0.00018118,2]
[374661778,1753403483978,500.0,0.00017999,2]
[374661779,1753403484007,500.0,0.00017999,2]
[374661780,1753403484038,163.6979379,0.00017999,2]
[374661781,1753403484066,500.0,0.00017999,2]
[374661782,1753403484093,542.14662068,0.00017999,2]
[374661783,1753403484121,500.0,0.00017999,2]
[374661784,1753403484150,500.0,0.00017999,2]
[374661785,1753403484177,535.78351244,0.00017999,2]
[374661786,1753403484204,599.54522803,0.00017999,2]
[374661787,1753403484233,500.0,0.00017999,2]
[374661788,1753403484265,486.82142718,0.00017999,2]
[374661789,1753403484300,500.0,0.00017999,2]
[374661790,1753403484329,500.0,0.00017999,2]
[374661791,1753403484358,500.0,0.00017999,2]
[374661792,1753403484391,500.0,0.00017999,2]
[374661793,1753403484422,500.0,0.00017999,2]
[374661794,1753403484450,295.44940092,0.00017999,2]
[374661795,1753403484471,204.55059908,0.00017999,2]
[374661796,1753403484502,500.0,0.00017999,2]
[374661797,1753403484536,500.0,0.00017999,2]
[374661798,1753403484576,500.0,0.00017999,2]
[374661799,1753403484607,500.0,0.00017999,2]
[374661800,1753403484636,500.0,0.00017999,2]
[374661801,1753403484669,500.0,0.00017999,2]
[374661802,1753403484699,500.0,0.00017999,2]
[374661803,1753403484728,500.0,0.00017999,2]
[374661804,1753403484759,500.0,0.00017999,2]
[374661805,1753403484804,500.0,0.00017999,2]
[374661806,1753403484835,236.84625094,0.00017999,2]
[374661807,1753403484866,500.0,0.00017999,2]
[374661808,1753403484895,500.0,0.00017999,2]
[374661809,1753403484927,500.0,0.00017999,2]
[374661810,1753403484957,500.0,0.00017999,2]
[374661811,1753403484995,500.0,0.00017999,2]
[374661812,1753403485041,500.0,0.00017999,2]
[374661813,1753403485071,500.0,0.00017999,2]
[374661814,1753403485101,500.0,0.00017999,2]
[374661815,1753403485135,500.0,0.00017999,2]
[374661816,1753403485163,500.0,0.00017999,2]
[374661817,1753403485193,500.0,0.00017999,2]
[374661818,1753403485222,226.29190789,0.00017999,2]
[374661819,1753403485252,500.0,0.00017999,2]
[374661820,1753403485300,500.0,0.00017999,2]
[374661821,1753403485337,500.0,0.00017999,2]
[374661822,1753403485369,500.0,0.00017999,2]
[374661823,1753403485400,500.0,0.00017999,2]
[374661824,1753403485429,500.0,0.00017999,2]
[374661825,1753403485458,500.0,0.00017999,2]
[374661826,1753403485492,500.0,0.00017999,2]
[374661827,1753403485521,500.0,0.00017999,2]
[374661828,1753403485551,500.0,0.00017999,2]
[374661829,1753403485582,500.0,0.00017999,2]
[374661830,1753403485627,500.0,0.00017999,2]
[374661831,1753403485664,500.0,0.00017999,2]
[374661832,1753403485768,500.0,0.00017999,2]
[374661833,1753403485868,500.0,0.00017999,2]
[374661834,1753403486066,500.0,0.00017999,2]
[374661835,1753403486118,500.0,0.00017999,2]
[374661836,1753403486160,500.0,0.00017999,2]
[374661837,1753403486273,500.0,0.00017999,2]
[374661838,1753403486306,500.0,0.00017999,2]
[374661839,1753403486402,3871.313905,0.00017319,2]
[374661840,1753403486570,1200.0,0.00017998,2]
[374661841,1753403487802,3760.99733709,0.00018,2]
[374661842,1753403487826,1239.00266291,0.00018,2]
[374661843,1753403488060,464.28282012,0.00017999,2]
[374661844,1753403490221,460.0,0.00017999,2]
[374661845,1753403495445,500.0,0.00017999,2]
[374661846,1753403495485,500.0,0.00017999,2]
[374661847,1753403495519,500.0,0.00017999,2]
[374661848,1753403495700,500.0,0.00017999,2]
[374661849,1753403495738,500.0,0.00017999,2]
[374661850,1753403495771,500.0,0.00017999,2]
[374661851,1753403495812,500.0,0.00017999,2]
[374661852,1753403495844,500.0,0.00017999,2]
[374661853,1753403495880,500.0,0.00017999,2]
[374661854,1753403495918,500.0,0.00017999,2]
[374661855,1753403495949,500.0,0.00017999,2]
[374661856,1753403495990,500.0,0.00017999,2]
[374661857,1753403496024,500.0,0.00017999,2]
[374661858,1753403496066,500.0,0.00017999,2]
[374661859,1753403496101,500.0,0.00017999,2]
[374661860,1753403496134,500.0,0.00017999,2]
[374661861,1753403496169,500.0,0.00017999,2]
[374661862,1753403496200,350.64816339,0.00017999,2]
[374661863,1753403496417,500.0,0.00017999,2]
[374661864,1753403496449,500.0,0.00017999,2]
[374661865,1753403496488,500.0,0.00017999,2]
[374661866,1753403496520,500.0,0.00017999,2]
[374661867,1753403496556,500.0,0.00017999,2]
[374661868,1753403496588,500.0,0.00017999,2]
[374661869,1753403496620,500.0,0.00017999,2]
[374661870,1753403496651,500.0,0.00017999,2]
[374661871,1753403496695,500.0,0.00017999,2]
[374661872,1753403497930,500.0,0.00017999,2]
[374661873,1753403499404,460.0,0.00017999,2]
[374661874,1753403501708,460.0,0.00017999,2]
[374661875,1753403502217,460.0,0.00017999,2]
[374661876,1753403503006,396.779194,0.00017244,2]
[374661877,1753403504319,460.0,0.00017999,2]
[374661878,1753403505194,5000.0,0.00018,2]
[374661879,1753403506215,500.0,0.00017999,2]
[374661880,1753403506247,500.0,0.00017999,2]
[374661881,1753403506277,500.0,0.00017999,2]
[374661882,1753403506313,500.0,0.00017999,2]
[374661883,1753403506343,500.0,0.00017999,2]
[374661884,1753403506374,500.0,0.00017999,2]
[374661885,1753403506403,500.0,0.00017999,2]
[374661886,1753403506433,350.64816339,0.00017999,2]
[374661887,1753403506468,500.0,0.00017999,2]
[374661888,1753403509424,500.0,0.00017999,2]
[374661889,1753403511008,460.0,0.00017999,2]
[374661890,1753403517722,460.0,0.00017999,2]
[374661891,1753403519125,460.0,0.00017999,2]
[374661892,1753403520199,518.63899619,0.00018,2]
[374661893,1753403520225,4481.36100381,0.00018,2]
[374661894,1753403521966,460.0,0.00017999,2]
[374661895,1753403531030,570.79161476,0.00017999,2]
[374661896,1753403535513,5000.0,0.00018,2]
[374661897,1753403537378,460.0,0.00017999,2]
[374661898,1753403539715,460.0,0.00017999,2]
[374661899,1753403546104,460.0,0.00017999,2]
[374661900,1753403550466,5000.0,0.00018,2]
[374661901,1753403552628,460.0,0.00017999,2]
[374661902,1753403563280,413.57358301,0.00017999,2]
[374661903,1753403565934,5000.0,0.00018,2]
[374661904,1753403572987,-156.71974513,0.0001804,2]
[374661905,1753403581530,5000.0,0.00018,2]
[374661906,1753403588558,-181.46839448,0.00018116,2]
[374661907,1753403590684,-155.96121062,0.00018017,2]
[374661908,1753403597579,2234.27379842,0.00018,2]
[374661909,1753403597602,2765.72620158,0.00018,2]
[374661910,1753403603084,-159.86309175,0.00018017,2]
[374661911,1753403603106,-118.53160552,0.00018116,2]
[374661912,1753403603129,-71.66514131,0.00018117,2]
[374661913,1753403604083,466.18785624,0.00017999,2]
[374661914,1753403612778,5000.0,0.00018,2]
[374661915,1753403614613,460.0,0.00017999,2]
[374661916,1753403623516,207.7662537,0.00017216,2]
[374661917,1753403627637,463.43741817,0.00017999,2]
[374661918,1753403628390,5000.0,0.00018,2]
[374661919,1753403632398,-608.83757531,0.00018117,2]
[374661920,1753403632783,460.0,0.00017999,2]
[374661921,1753403634730,-350.05983858,0.00018117,2]
[374661922,1753403636577,350.05983858,0.00018,2]
[374661923,1753403636601,4649.94016142,0.00018,2]
[374661924,1753403637479,1361.1781723,0.00017216,2]
[374661925,1753403642147,460.0,0.00017999,2]
[374661926,1753403643569,572.86,0.00017999,2]
[374661927,1753403645011,5000.0,0.00018,2]
[374661928,1753403654748,3132.90393659,0.00018,2]
[374661929,1753403654780,17.99674058,0.00018,2]
[374661930,1753403656483,472.12,0.00017999,2]
[374661931,1753403660522,217.241718,0.00013699,2]
[374661932,1753403662863,5000.0,0.00018,2]
[374661934,1753403669178,460.0,0.00017999,2]
[374661935,1753403670220,460.0,0.00017999,2]
[374661936,1753403670909,-260.03492048,0.00018116,2]
[374661937,1753403672398,460.0,0.00017999,2]
[374661938,1753403674091,460.0,0.00017999,2]
[374661939,1753403680721,5000.0,0.00018,2]
[374661940,1753403681853,-500.0,0.00018116,2]
[374661941,1753403681874,-334.89987703,0.00018116,2]
[374661942,1753403681896,-500.0,0.00018116,2]
[374661943,1753403681917,-526.3162501,0.00018116,2]
[374661944,1753403681940,-138.78387287,0.00018116,2]
[374661945,1753403682666,460.0,0.00017999,2]
[374661946,1753403691936,460.0,0.00017999,2]
[374661947,1753403695481,-310.58173231,0.00018017,2]
[374661948,1753403695507,-135.0847708,0.00018116,2]
[374661949,1753403697443,5000.0,0.00018,2]
[374661950,1753403698195,-226.13135633,0.00018116,2]
[374661951,1753403698222,-168.7565053,0.00018116,2]
[374661952,1753403699849,460.0,0.00017999,2]
[374661953,1753403700186,380.630348,0.00017573,2]
[374661954,1753403700553,382.07694215,0.00017573,2]
[374661955,1753403701093,460.0,0.00017999,2]
[374661956,1753403713007,460.0,0.00017999,2]
[374661957,1753403713345,5000.0,0.00018,2]
[374661958,1753403728953,4389.93425127,0.00018,2]
[374661959,1753403730290,-608.83757531,0.00018,2]
[374661960,1753403742943,8505.7385924,0.00017122,2]
[374661962,1753403921195,-260.03492048,0.00017719,2]
[374661963,1753403934703,-181.46839448,0.00017719,2]
[374661964,1753403951787,-190.19674683,0.00017719,2]
[374661965,1753403964833,-168.7565053,0.00017719,2]
[374661966,1753403971519,-4199.54343291,0.00017719,2]
[374661967,1753404001860,267.30920009,0.00017457,2]
[374661968,1753404035801,-361.21612713,0.00017718,2]
[374661969,1753404053534,-138.78387287,0.00017718,2]
[374661970,1753404053561,-211.27596571,0.00017718,2]
[374661971,1753404062444,350.05983858,0.000175,2]
[374661972,1753404068623,-156.71974513,0.00017717,2]
[374661973,1753404083470,-271.75901571,0.00017618,2]
[374661974,1753404083495,-38.8227166,0.00017717,2]
[374661975,1753404098063,-104.45753827,0.00017717,2]
[374661976,1753404098086,-51.50367235,0.00017717,2]
[374661977,1753404114279,-159.86309175,0.00017717,2]
[374661978,1753404127840,-608.83757531,0.00017717,2]
[374661979,1753404173232,5000.0,0.000175,2]
[374661980,1753404190246,4382.63096133,0.000175,2]
[374661981,1753404190276,617.36903867,0.000175,2]
[374661982,1753404205613,5000.0,0.000175,2]
[374661984,1753404220862,4382.63096133,0.000175,2]
[374661985,1753404220887,617.36903867,0.000175,2]
[374661986,1753404239165,5000.0,0.000175,2]
[374661988,1753404254813,3928.29786894,0.000175,2]
[374661989,1753404301276,454.33309239,0.000175,2]
[374661990,1753404301302,3110.02307761,0.000175,2]
[374661991,1753404303107,291.885667,0.00017185,2]
[374661992,1753404303496,291.63089412,0.00017185,2]
[374661993,1753404392195,6306.46036127,0.00016716,2]
[374661994,1753404392221,10000.0,0.00016716,2]
[374661995,1753404392246,8593.53963873,0.00016716,2]
[374661996,1753404397470,-189.93047499,0.00017614,2]
[374661997,1753404420995,-282.61357251,0.00017614,2]
[374661998,1753404421017,-81.4559525,0.00017614,2]
[374661999,1753404441085,-108.47452249,0.00017614,2]
[374662000,1753404441107,-605.54324372,0.00017714,2]
[374662001,1753404454098,-594.45675628,0.00017714,2]
[374662002,1753404454125,-300.0,0.00017714,2]
[374662003,1753404454146,-584.42991392,0.00017715,2]
[374662004,1753404454173,-500.0,0.00017715,2]
[374662005,1753404454197,-500.0,0.00017715,2]
[374662006,1753404454219,-500.0,0.00017715,2]
[374662007,1753404454242,-500.0,0.00017715,2]
[374662008,1753404454265,-500.0,0.00017715,2]
[374662009,1753404454289,-169.48050355,0.00017715,2]
[374662010,1753404548131,-175.598093,0.00017615,2]
[374662011,1753404548152,-300.0,0.00017713,2]
[374662012,1753404548174,-409.10093974,0.00017714,2]
[374662013,1753404548200,-500.0,0.00017714,2]
[374662014,1753404548221,-500.0,0.00017714,2]
[374662015,1753404548246,-500.0,0.00017714,2]
[374662016,1753404548267,-500.0,0.00017714,2]
[374662017,1753404548289,-500.0,0.00017714,2]
[374662018,1753404548313,-500.0,0.00017714,2]
[374662019,1753404548335,-500.0,0.00017714,2]